Cogmind - Beta 12 *** ADVENTURER MODE // 2024.02.19 @ 07:40:27 Player: Takagiro Result: Destroyed by Y-45 Defender with Heavy Assault Rifle Performance ------------- Evolutions (2) 1000 Regions Visited (4) 800 Robots Destroyed (66) 330 Value Destroyed (1895) 1895 Prototype IDs (0) 0 Alien Tech Used (0) 0 Bonus (8) 8 TOTAL SCORE: 4033 Bonus ------- High Alert Combat Kills 8 Cogmind --------- Core Integrity 0/550 Matter 212/300 Energy 91/100 System Corruption 0% Temperature Cool (13) Movement Treading (160) Location -8/Storage Parts ------- > --- POWER (2) -------- (None) > --- PROPULSION (2) --- Light Treads Light Treads > --- UTILITY (5) ------ Large Storage Unit Machine Analyzer Machine Analyzer Utility Shielding > --- WEAPON (2) ------- Beam Rifle Heavy Assault Rifle > --- INVENTORY (15) --- Light Treads Light Treads Light Treads Armored Treads Aluminum Leg Heat Sink Improved Heat Sink Small Storage Unit Compact Battery (200) Compact Battery (200) Particle Charger Particle Charger Advanced Beam Rifle Mini Grenade Launcher Peak State ------------ > --- POWER ------------ Light Nuclear Core > --- PROPULSION ------- Aluminum Leg Carbon-fiber Leg > --- UTILITY ---------- Improved Heat Sink Large Storage Unit Machine Analyzer Machine Analyzer Utility Shielding > --- WEAPON ----------- Beam Cannon > --- INVENTORY -------- Light Treads Light Treads Light Treads Armored Treads Aluminum Leg Heat Sink Improved Heat Sink Small Storage Unit Compact Battery Compact Battery Particle Charger Particle Charger Beam Rifle Advanced Beam Rifle Mini Grenade Launcher [Rating: 22] Favorites ----------- Power Light Ion Engine Engine Light Ion Engine Power Core Light Nuclear Core Propulsion Aluminum Leg Treads Light Treads Leg Aluminum Leg Utility Large Storage Unit Device Improved Heat Sink Storage Large Storage Unit Processor Machine Analyzer Protection Utility Shielding Weapon Medium Laser Energy Gun Medium Laser Energy Cannon Beam Cannon Ballistic Gun Heavy Assault Rifle Launcher Mini Grenade Launcher Build | -11 -10 -9 -8 -8 ------- Run | Jun Mat Mat Mat Sto Slots Evolved 4 | . . 2 2 . Power 1 | . . . 1 . Propulsion . | . . . . . Utility 3 | . . 2 1 . Weapon . | . . . . . Parts Attached 41 | 6 3 13 14 5 Power 6 | 1 . 3 2 . Engine 4 | 1 . 3 . . Core 2 | . . . 2 . Reactor . | . . . . . Propulsion 10 | 2 . 2 4 2 Treads 4 | 2 . . . 2 Leg 6 | . . 2 4 . Wheel . | . . . . . Hover . | . . . . . Flight . | . . . . . Utility 12 | 1 2 4 5 . Device 5 | . 1 2 2 . Storage 4 | 1 1 2 . . Processor 2 | . . . 2 . Hackware . | . . . . . Protection 1 | . . . 1 . Artifact . | . . . . . Weapon 13 | 2 1 4 3 3 Energy Gun 7 | 1 1 3 1 1 Energy Cannon 1 | . . . 1 . Ballistic Gun 4 | 1 . 1 1 1 Ballistic Cannon . | . . . . . Launcher 1 | . . . . 1 Special Weapon . | . . . . . Impact Weapon . | . . . . . Slashing Weapon . | . . . . . Piercing Weapon . | . . . . . Special Melee Weapon . | . . . . . Unidentified Prototypes . | . . . . . Parts Lost 28 | . 1 10 12 5 Power 6 | . 1 2 3 . Propulsion 8 | . . 3 3 2 Utility 5 | . . 1 3 1 Weapon 9 | . . 4 3 2 Highest Loss Streak 6 | . 1 5 6 4 To Critical Strikes . | . . . . . Average Slot Usage (%) 81 | . 96 87 65 70 Engine 6 | . 11 10 2 . Core 1 | . . . 4 . Treads 8 | . 28 3 . 8 Leg 8 | . . 12 10 6 Device 13 | . 4 22 13 4 Storage 16 | . 23 20 9 9 Processor 4 | . . . 7 18 Protection 1 | . . . 1 9 Energy Gun 13 | . 27 16 3 6 Energy Cannon 2 | . . . 5 4 Ballistic Gun 3 | . . 2 7 2 Naked Turns . | . . . . . Heaviest Build 34 | 11 14 34 32 28 Greatest Support 40 | 40 40 40 29 40 Greatest Overweight (x) 7 | 1 . 5 7 1 Average Overweight (x) . | . . 1 1 . Largest Inventory Capacity 15 | 8 8 15 15 15 Average Capacity 12 | 6 8 12 15 15 Most Carried 15 | 5 8 15 15 15 Average Carried 10 | 3 7 10 13 13 Final Capacity 15 | 8 8 15 15 15 Final Carried 15 | 4 8 15 14 14 Class Distribution -------------------- 92% | Mutant 7% | Scavenger-Mutant Dominant Class ---------------- Mutant | -10/Materials Mutant | -9/Materials Mutant | -8/Materials Mutant | -8/Storage Resources | -11 -10 -9 -8 -8 ----------- Run | Jun Mat Mat Mat Sto Matter Collected 692 | 202 83 125 223 59 Remotely . | . . . . . Salvage Created 2130 | . 358 894 573 305 Parts 126 | . 18 62 31 15 Haulers Intercepted 1 | . . . . 1 Recyclers Shooed . | . . . . . Parts Field Recycled . | . . . . . Retrieved Matter . | . . . . . Parts Self-Destructed . | . . . . . Prevented . | . . . . . Kills | -11 -10 -9 -8 -8 ------- Run | Jun Mat Mat Mat Sto Combat Hostiles Destroyed 58 | . 10 27 15 6 Guns 47 | . 10 27 9 1 Cannons 7 | . . . 5 2 AOE 3 | . . . . 3 Classes Destroyed 8 | . 3 3 1 1 Builder 1 | . . 1 . . Hauler 1 | . . . . 1 Watcher 6 | . 1 3 1 1 Swarmer 21 | . 3 13 5 . Grunt 25 | . 7 9 7 2 Brawler 1 | . . 1 . . Sentry 9 | . . 4 2 3 Hunter 2 | . . . 1 1 Best Kill Streak 6 | . 4 6 4 3 Combat Bots Only 6 | . 4 6 3 2 Max Kills in Single Turn 2 | . 2 1 2 1 Gunslinging 1 | . 1 . 1 . Exploded 1 | . . . . 1 Melee . | . . . . . Uniques/NPCs Destroyed . | . . . . . Combat | -11 -10 -9 -8 -8 -------- Run | Jun Mat Mat Mat Sto Damage Taken 3234 | . 400 1071 1268 495 Core 882 | . 67 263 429 123 Absorbed by Shields . | . . . . . Redirected to Shielding 26 | . . . 3 23 Regen/Repaired (Parts) 24 | . . 24 . . Core Remaining (%) 69 | 100 73 34 . . Volleys Fired 187 | . 28 83 49 27 Largest 2 | . 2 2 2 2 Hottest 116 | . 100 100 116 116 Shots Fired 332 | . 56 139 91 46 Gun 275 | . 56 139 57 23 Cannon 49 | . . . 34 15 Launcher 8 | . . . . 8 Special . | . . . . . Kinetic 53 | . . 9 40 4 Thermal 271 | . 56 130 51 34 Explosive 8 | . . . . 8 Electromagnetic . | . . . . . Robot Hit Streak 31 | . 14 31 16 27 Robot Miss Streak 4 | . 3 3 4 1 Penetration Max . | . . . . . Secondary Targets 11 | . 3 6 1 1 Max Gunslinging Chain 1 | . 1 1 1 1 Shots Hit Robots 267 | . 42 117 66 42 Core Hits 114 | . 19 46 34 15 Critical Kills 2 | . . 1 1 . Critical Parts Destroyed . | . . . . . Critical Strikes 8 | . 3 3 1 1 Burn 6 | . 3 2 . 1 Meltdown 1 | . . . 1 . Destroy 1 | . . 1 . . Melee Attacks . | . . . . . Impact . | . . . . . Slashing . | . . . . . Piercing . | . . . . . Sneak Attacks . | . . . . . Combat Hostiles . | . . . . . Follow-up Attacks . | . . . . . Damage Inflicted 3885 | . 525 1358 1109 893 Guns 2822 | . 523 1355 653 291 Cannons 699 | . . . 456 243 Explosions 359 | . . . . 359 Melee . | . . . . . Ramming 5 | . 2 3 . . Kinetic 715 | . . 124 532 59 Thermal 2806 | . 523 1231 577 475 Explosive 359 | . . . . 359 Electromagnetic . | . . . . . Impact . | . . . . . Slashing . | . . . . . Piercing . | . . . . . Highest Corruption . | . . . . . Average Corruption . | . . . . . Corruption Purged . | . . . . . Corruption Blocked . | . . . . . Overload Shots . | . . . . . Overflow Damage 10 | . . . . 10 Projectiles . | . . . . . Explosions 10 | . . . . 10 Melee . | . . . . . Knockbacks . | . . . . . Impact . | . . . . . Kinetic . | . . . . . Secondary . | . . . . . Self-Inflicted Damage 30 | . . . . 30 Shots 4 | . . . . 4 Rammed 1 | . 1 . . . Targets Rammed 2 | . 1 1 . . Kicked 1 | . . 1 . . Crushed . | . . . . . Highest Temperature 293 | . 293 21 108 11 Average Temperature 63 | . 94 5 33 3 Received Heat Transfer 1635 | . 186 333 873 243 Siege Activations . | . . . . . Robots Corrupted . | . . . . . Combat Hostiles . | . . . . . Parts Fried . | . . . . . Impact Corruptions . | . . . . . Robots Melted 1 | . . . 1 . Combat Hostiles 1 | . . . 1 . Parts Melted 29 | . 10 9 6 4 Heat Transferred 7382 | . 1776 3173 1249 1184 Parts Sabotaged . | . . . . . Parts Stolen . | . . . . . Parts Stripped . | . . . . . Power Chain Reactions . | . . . . . Missiles Intercepted . | . . . . . Alert | -11 -10 -9 -8 -8 ------- Run | Jun Mat Mat Mat Sto Peak Influence 432 | . 159 432 235 332 Initial 117 | . . 57 117 78 Average 142 | . 64 192 127 178 Maximum Alert Level 2 | . . 2 1 1 Low Security (%) 74 | 100 100 53 89 54 Level 1 24 | . . 42 10 45 Level 2 1 | . . 4 . . Level 3 . | . . . . . Level 4 . | . . . . . Level 5 . | . . . . . High Security . | . . . . . Max Security . | . . . . . Squads Dispatched 11 | . 4 4 3 . Investigation 8 | . 4 2 2 . Extermination . | . . . . . Reinforcement 3 | . . 2 1 . Assault . | . . . . . Garrison . | . . . . . Intercept . | . . . . . Searches Triggered . | . . . . . Construction Impeded 1 | . . 1 . . Haulers Reinforced . | . . . . . Active Scanning Responses . | . . . . . Cargo Convoy Interrupts . | . . . . . Stealth | -11 -10 -9 -8 -8 --------- Run | Jun Mat Mat Mat Sto Distress Signals 9 | . . 8 1 . Communications Jammed . | . . . . . Distress Signals . | . . . . . Times Spotted 92 | . 12 46 24 10 Peak Tracking Total 8 | . 4 8 5 2 Tactical Retreats 7 | . 1 6 . . Traps | -11 -10 -9 -8 -8 ------- Run | Jun Mat Mat Mat Sto Traps Triggered 1 | . . . . 1 Indirectly . | . . . . . Trap Hack Attempts . | . . . . . Triggered . | . . . . . Disarmed . | . . . . . Reprogrammed . | . . . . . Reused . | . . . . . Traps Extracted . | . . . . . Installed . | . . . . . Triggered . | . . . . . Machines | -11 -10 -9 -8 -8 ---------- Run | Jun Mat Mat Mat Sto Machines Disabled 3 | . . . . 3 Max in Single Turn 1 | . . . . 1 Garrison Access 1 | . . . 1 . Machines Repaired . | . . . . . Machines Sabotaged . | . . . . . Overloaded Fab Kills . | . . . . . Hacking | -11 -10 -9 -8 -8 --------- Run | Jun Mat Mat Mat Sto Machines Accessed 15 | . 6 5 3 1 Terminals 10 | . 5 2 2 1 Fabricators . | . . . . . Repair Stations 1 | . . 1 . . Recycling Units 3 | . 1 2 . . Scanalyzers . | . . . . . Garrison Access 1 | . . . 1 . Total Hacks 55 | . 22 15 15 3 Successful 35 | . 11 13 9 2 Failed 17 | . 11 2 3 1 Catastrophic . | . . . . . Database Lockouts 3 | . . . 3 . Manual . | . . . . . Terminals 41 | . 18 8 12 3 Fabricators . | . . . . . Repair Stations 3 | . . 3 . . Recycling Units 8 | . 4 4 . . Scanalyzers . | . . . . . Garrison Access 3 | . . . 3 . Terminal Hacks 25 | . 8 8 7 2 Record 20 | . 6 6 7 1 Part Schematic 1 | . . . . 1 Maintenance Status 1 | . . 1 . . Registered Components 1 | . . 1 . . Zone Layout 2 | . 2 . . . Fabricator Hacks . | . . . . . Repair Station Hacks 2 | . . 2 . . Scan Component 1 | . . 1 . . Repair 1 | . . 1 . . Recycling Unit Hacks 6 | . 3 3 . . Process 2 | . 2 . . . Retrieve Components 4 | . 1 3 . . Scanalyzer . | . . . . . Garrison Access Hacks 2 | . . . 2 . Unlock Access 1 | . . . 1 . Seal Access 1 | . . . 1 . Unauthorized Hacks . | . . . . . Terminals . | . . . . . Fabricators . | . . . . . Repair Stations . | . . . . . Recycling Units . | . . . . . Scanalyzers . | . . . . . Garrison Access . | . . . . . Data Cores Recovered . | . . . . . Used . | . . . . . Hacking Detections 15 | . 6 5 3 1 Full Trace Events 11 | . 6 3 2 . Feedback Events . | . . . . . Feedback Blocked . | . . . . . Robot Schematics Acquired . | . . . . . Robots Built . | . . . . . Authchips . | . . . . . Time . | . . . . . Total Robot Build Rating . | . . . . . Part Schematics Acquired 1 | . . . . 1 Parts Built . | . . . . . Authchips . | . . . . . Time . | . . . . . Total Part Build Rating . | . . . . . Parts Repaired 1 | . . 1 . . Time 26 | . . 26 . . Parts Recycled . | . . . . . Recycled Matter 154 | . 154 . . . Retrieved Matter . | . . . . . Retrieved Components 12 | . . 12 . . Parts Scanalyzed . | . . . . . Part Schematics Acquired . | . . . . . Parts Damaged . | . . . . . Bothacking | -11 -10 -9 -8 -8 ------------ Run | Jun Mat Mat Mat Sto Used RIF Installer . | . . . . . Robots Hacked . | . . . . . Non-combat . | . . . . . Combat . | . . . . . Robot Hacks Applied . | . . . . . Relay Couplers Released . | . . . . . Fabnet Peak Effective % . | . . . . . Robots Rewired . | . . . . . Allies Hacked . | . . . . . Hacks Repelled . | . . . . . Allies | -11 -10 -9 -8 -8 -------- Run | Jun Mat Mat Mat Sto Total Allies . | . . . . . Largest Group . | . . . . . Highest-Rated Group . | . . . . . Highest-Rated Ally . | . . . . . Total Orders . | . . . . . Ally Attacks . | . . . . . Total Damage . | . . . . . Kills . | . . . . . Allies Corrupted . | . . . . . Allies Melted . | . . . . . Intel | -11 -10 -9 -8 -8 ------- Run | Jun Mat Mat Mat Sto Robot Analysis Total . | . . . . . Derelict Logs Recovered . | . . . . . Drone Launches . | . . . . . Drone Recoveries . | . . . . . Exploration | -11 -10 -9 -8 -8 ------------- Run | Jun Mat Mat Mat Sto Turns Passed 2765 | 66 560 997 757 385 Spaces Moved 1092 | 46 288 349 234 175 Core 37 | 20 . 8 9 . Treads 479 | 26 288 69 . 96 Legs 576 | . . 272 225 79 Wheels . | . . . . . Hover . | . . . . . Flight . | . . . . . Fastest Speed 50 | 50 160 120 125 160 Average Speed 190 | 115 160 198 244 173 Slowest Speed 400 | 160 160 330 400 190 Overloaded Moves . | . . . . . Propulsion Burnouts . | . . . . . Robots Hopped . | . . . . . Cave-ins Triggered . | . . . . . Exploration Rate (%) 26 | 4 42 33 24 31 Regions Visited 4 Branch Regions 1 Pre-discovered Areas . | . . . . . Known Exits Taken . | . . . . . Unknown Exits Taken 4 | 1 1 1 1 . Scrap Searched . | . . . . . Spaces Dug . | . . . . . Terrain Destroyed 33 | . . . . 33 Melee . | . . . . . Projectile . | . . . . . AOE 33 | . . . . 33 Terrain Rammed . | . . . . . Walls Destroyed . | . . . . . Machines Disabled . | . . . . . Actions | -11 -10 -9 -8 -8 --------- Run | Jun Mat Mat Mat Sto Total 1446 | 58 332 515 329 212 Wait 70 | . . 50 20 . Move 1088 | 45 287 348 233 175 Hop . | . . . . . Pick Up 51 | 7 9 19 12 4 Fast Attach 6 | 3 . 1 2 . Attach 32 | 3 1 11 12 5 Detach 1 | . . . . 1 Swap 3 | . 2 1 . . Drop 6 | . 4 1 1 . Fire 187 | . 28 83 49 27 Melee . | . . . . . Ram . | . . . . . Kick 1 | . . 1 . . Crush 1 | . 1 . . . Escape Stasis . | . . . . . Rewire . | . . . . . Trap . | . . . . . Miscellaneous . | . . . . . Route ------- -11/Junkyard -10/Materials -9/Materials -8/Materials -8/Storage History --------- Turn | Location | Event 6 | -11/Junkyard | Discovered new exit (range 15) 67 | -11/Junkyard | Entered Materials 318 | -10/Materials | Build established: Mutant 605 | -10/Materials | Discovered new exit (range 4) 627 | -10/Materials | Entered another Materials area 627 | -9/Materials | Evolved 2 slots: Utility x2 875 | -9/Materials | Lost 5 parts (1p2n2w) 972 | -9/Materials | Repaired Med. Battery 1322 | -9/Materials | Core integrity fell below 50% 1358 | -9/Materials | Lost 3 parts (1p2w) 1385 | -9/Materials | Discovered new exit (range 10) 1624 | -9/Materials | Entered another Materials area 1624 | -8/Materials | Evolved 2 slots: Power x1, Utility x1 1669 | -8/Materials | Identified exit to Garrison 1856 | -8/Materials | Central database locked down 1856 | -8/Materials | Central database locked down 1856 | -8/Materials | Central database locked down 1927 | -8/Materials | Core integrity fell below 50% 1945 | -8/Materials | Lost 6 parts (1p1n2u2w) 2353 | -8/Materials | Discovered new exit (range 6) 2381 | -8/Materials | Entered Storage 2433 | -8/Storage | Core integrity fell below 20% 2615 | -8/Storage | Lost 4 parts (1n1u2w) 2766 | -8/Storage | Destroyed by Y-45 Defender with Heavy Assault Rifle Last Messages --------------- The unstable cave ceiling collapses. Acquired 49 matter. U-05 Engineer lays Concrete. U-05 Engineer builds a Wall. K-01 Serf collects debris. U-05 Engineer lays Concrete. U-05 Engineer builds a Wall. K-01 Serf collects debris. Y-45 Defender destroyed. Transport Mainframe disabled. Acquired Hvy. Assault Rifle. Acquired Lgt. Treads. The unstable cave ceiling collapses. W-25 Informer destroyed. >> Machine Analyzer network decryption results: Terminal x1 K-01 Serf cleans the Compression Vault. K-01 Serf cleans the Storage Shell. Y-45 Defender destroyed. Switching to secondary target: Y-45 Defender. Map ----- +----------------------------------------------------+ | | | | | | | | | | | ?????????????????????????????????????????????????? | | ?????????????????????????????????????????????????? | | ?????????????????????????????????????????????????? | | ?????????????????????????????????????????????????? | | ?????????????????????????????????????????????????? | | ?????????????##??????????????????????????????????? | | ???????????## ###????????????????????????????????? | | ??????????? #????????????????????????????????? | | ??? ?????""" #????????????????????????????????? | | ?? #????""" #????????????????????????????????? | | ? #????""" ?????????????????????????????????? | | #???? ?????????????????????????????????? | | " ?????""" ?###########??????????????????????? | | " ??????""" ?# #?#####????????????????? | | " ???????""" ??# ?? # ###??????????????? | | ?????????? ??# ??? # ???????????????? | | ############+#### "????" + ???????????????????? | | + "????" Y#??????????????????????? | | ### "????" #??????????????????????? | | #?# """""" #??????????????????????? | | ########### #?# m!%! @#??????????????????????? | | ??????????# #?###########??????????????????????? | | #????????# #??????????????????????????????????? | | #????????# #??????????????????????????????????? | | #????????# #??????????????????????????????????? | | #????????+ #??????????????????????????????????? | | #????????# #??????????????????????????????????? | | #????????# = #??????????????????????????????????? | | #????????#*%!+??????????????????????????????????? | | #????????# = #??????????????????????????????????? | | #????????## ##??????????????????????????????????? | | #?????????? #???????????????????????????????????? | | #?????????? ????????????????????????????????????? | | #???????????????????????????????????????????????? | | ##???????????????????????????????????????????????? | | ?????????????????????????????????????????????????? | | ?????????????????????????????????????????????????? | | ?????????????????????????????????????????????????? | | ?????????????????????????????????????????????????? | | ?????????????????????????????????????????????????? | | ?????????????????????????????????????????????????? | | ?????????????????????????????????????????????????? | | ?????????????????????????????????????????????????? | | ?????????????????????????????????????????????????? | | ?????????????????????????????????????????????????? | +----------------------------------------------------+ Best States ------------- Heat Dissipation 45 Energy Generation 14 Energy Capacity 415 Matter Stores 300 Matter Capacity 300 Sight Range 16 Terrain Scan Range 14 Terrain Scan Density 10 ECM Strength 1 Additional Mass Support 9 Resistance: KI 20 Resistance: TH 20 Resistance: EX 20 Resistance: EM 20 Resistance: I 20 Resistance: S 20 Resistance: P 20 Utility Shielding 33 Evasion (%) 55 Recoil Reduction 2 Offensive Hacking 10 Item Schematics ----------------- Imp. Datajack | -8/Storage | Hacked Robot Schematics ------------------ None Fabricated ------------ Nothing Alien Tech Used ----------------- None Achievements -------------- None Challenges ------------ None Game ------ Seed VortexHeatAirjet Manual? 0 Play Time 00:36:01 Cumulative 7.0 hours Start 2024.02.19 @ 07:00:36 End 2024.02.19 @ 07:40:27 Sessions 1 Manual Loads 0 Difficulty Adventurer Special Mode None Game No. 9 Rogue 0 Adventurer 9 Explorer 0 Win Type - Total 0 Types 0/0/0/0/0/0/0/0/0 Lore% 3 Gallery% 11 Achievement% 10 Wizard Run 0 Options --------- ASCII 0 Keyboard 0 Movement Mouse Keybinds 0 Fullscreen 1 Font 18/SmallcapsGlow Map View 76x50 Tactical HUD 0 Map Filters NONE Filters NONE Steam 1 RUN: edf39399-4a4f-4603-952b-9f97217e7fc0